[Event "Late-Titled-Tuesday-Blitz-February-20-2024"]
[Site "Chess.com"]
[Date "2024.02.20"]
[Round "7"]
[White "otrov-11"]
[Black "Mikhal867"]
[Result "1-0"]
[WhiteElo "2603"]
[BlackElo "2430"]
[TimeControl "180+1"]
[EndTime "15:17:59 PST"]
[Termination "otrov-11 won on time"]

1. d4 {[%clk 0:03:00.9]} 1... Nf6 {[%clk 0:02:59.2]} 2. c4 {[%clk 0:03:01.2]}
2... g6 {[%clk 0:02:58.8]} 3. g3 {[%clk 0:03:00.6]} 3... Bg7 {[%clk 0:02:58.9]}
4. Bg2 {[%clk 0:03:01.2]} 4... O-O {[%clk 0:02:59.4]} 5. Nc3 {[%clk 0:03:01.9]}
5... d6 {[%clk 0:02:59.6]} 6. Nf3 {[%clk 0:03:02.6]} 6... Nbd7 {[%clk 0:03:00]}
7. O-O {[%clk 0:03:03.4]} 7... e5 {[%clk 0:03:00.6]} 8. e4 {[%clk 0:03:04.3]}
8... c6 {[%clk 0:03:01]} 9. Re1 {[%clk 0:03:04.9]} 9... exd4 {[%clk 0:02:58.1]}
10. Nxd4 {[%clk 0:03:05]} 10... Nc5 {[%clk 0:02:56.4]} 11. h3 {[%clk 0:03:04.1]}
11... a5 {[%clk 0:02:55.9]} 12. Be3 {[%clk 0:03:04.3]} 12... Re8 {[%clk
0:02:55.4]} 13. f3 {[%clk 0:02:58.7]} 13... a4 {[%clk 0:02:51.8]} 14. Rc1 {[%clk
0:02:58.4]} 14... Qa5 {[%clk 0:02:50.2]} 15. Nc2 {[%clk 0:02:48.3]} 15... Rd8
{[%clk 0:02:32]} 16. Qd2 {[%clk 0:02:24.2]} 16... Be6 {[%clk 0:02:30.8]} 17. Bf1
{[%clk 0:02:19.9]} 17... d5 {[%clk 0:02:26.9]} 18. cxd5 {[%clk 0:02:14.6]} 18...
cxd5 {[%clk 0:02:26.7]} 19. e5 {[%clk 0:02:15.2]} 19... Nh5 {[%clk 0:02:23.1]}
20. Bf2 {[%clk 0:02:15.6]} 20... d4 {[%clk 0:02:20.8]} 21. Nxd4 {[%clk 0:02:16]}
21... Qb4 {[%clk 0:02:09.5]} 22. g4 {[%clk 0:02:12.7]} 22... Ng3 {[%clk
0:02:01.5]} 23. Bb5 {[%clk 0:01:52]} 23... h5 {[%clk 0:01:45.4]} 24. Kg2 {[%clk
0:01:48.4]} 24... h4 {[%clk 0:01:44.2]} 25. a3 {[%clk 0:01:40.5]} 25... Qa5
{[%clk 0:01:42.2]} 26. Qg5 {[%clk 0:01:41.2]} 26... Rxd4 {[%clk 0:01:16.4]} 27.
Bxd4 {[%clk 0:01:36.1]} 27... Nb3 {[%clk 0:01:16]} 28. Bf2 {[%clk 0:01:32]}
28... Nxc1 {[%clk 0:01:12]} 29. Rxc1 {[%clk 0:01:27.6]} 29... Qd8 {[%clk
0:00:43.8]} 30. Qe3 {[%clk 0:01:02.2]} 30... Bb3 {[%clk 0:00:39.4]} 31. Ne2
{[%clk 0:00:54.9]} 31... Nxe2 {[%clk 0:00:36.4]} 32. Bxe2 {[%clk 0:00:55.8]}
32... Qe7 {[%clk 0:00:32]} 33. Rc5 {[%clk 0:00:47.4]} 33... b6 {[%clk
0:00:29.7]} 34. Rb5 {[%clk 0:00:44]} 34... Re8 {[%clk 0:00:26.7]} 35. f4 {[%clk
0:00:44]} 35... g5 {[%clk 0:00:26.2]} 36. fxg5 {[%clk 0:00:37.6]} 36... Bxe5
{[%clk 0:00:25.8]} 37. Bxh4 {[%clk 0:00:34.8]} 37... Bxb2 {[%clk 0:00:24.3]} 38.
Qxe7 {[%clk 0:00:24.6]} 38... Rxe7 {[%clk 0:00:24.5]} 39. Bd3 {[%clk 0:00:24.5]}
39... Rd7 {[%clk 0:00:20.2]} 40. Bf5 {[%clk 0:00:20.5]} 40... Rd2+ {[%clk
0:00:19.4]} 41. Kf3 {[%clk 0:00:21.2]} 41... Bd1+ {[%clk 0:00:18.7]} 42. Ke3
{[%clk 0:00:20.5]} 42... Re2+ {[%clk 0:00:18.5]} 43. Kd3 {[%clk 0:00:21.1]}
43... Bxa3 {[%clk 0:00:18.1]} 44. Rxb6 {[%clk 0:00:21]} 44... Bc5 {[%clk
0:00:17.8]} 45. Rb8+ {[%clk 0:00:20.7]} 45... Kg7 {[%clk 0:00:18.2]} 46. g6
{[%clk 0:00:17.3]} 46... fxg6 {[%clk 0:00:17.2]} 47. Rb7+ {[%clk 0:00:17.9]}
47... Kf8 {[%clk 0:00:15.6]} 48. Bxg6 {[%clk 0:00:17.2]} 48... Re3+ {[%clk
0:00:14.4]} 49. Kd2 {[%clk 0:00:16.9]} 49... Bb3 {[%clk 0:00:13.3]} 50. Bf2
{[%clk 0:00:14.7]} 50... Rd3+ {[%clk 0:00:08.9]} 51. Kxd3 {[%clk 0:00:13.7]}
51... Bxf2 {[%clk 0:00:08.9]} 52. h4 {[%clk 0:00:11.7]} 52... Bxh4 {[%clk
0:00:08.9]} 53. Be4 {[%clk 0:00:09.7]} 53... Ba2 {[%clk 0:00:06.3]} 54. Ra7
{[%clk 0:00:09.3]} 54... Bb3 {[%clk 0:00:06.1]} 55. Ra8+ {[%clk 0:00:09.4]}
55... Kg7 {[%clk 0:00:06.1]} 56. Kd4 {[%clk 0:00:10.1]} 56... Bf6+ {[%clk
0:00:04.4]} 57. Kc5 {[%clk 0:00:09.8]} 57... Be7+ {[%clk 0:00:03.9]} 58. Kc6
{[%clk 0:00:09.6]} 58... a3 {[%clk 0:00:04.3]} 59. Bd5 {[%clk 0:00:10.2]} 59...
Bxd5+ {[%clk 0:00:01.8]} 60. Kxd5 {[%clk 0:00:11.1]} 1-0

[Event "Late-Titled-Tuesday-Blitz-February-20-2024"]
[Site "Chess.com"]
[Date "2024.02.20"]
[Round "7"]
[White "bocah_sakit"]
[Black "Thjop"]
[Result "0-1"]
[WhiteElo "2507"]
[BlackElo "2616"]
[TimeControl "180+1"]
[EndTime "15:18:00 PST"]
[Termination "Thjop won by checkmate"]

1. e4 {[%clk 0:02:59.5]} 1... e6 {[%clk 0:03:00]} 2. d4 {[%clk 0:02:56.3]} 2...
d5 {[%clk 0:03:00.4]} 3. Nc3 {[%clk 0:02:56.9]} 3... Nf6 {[%clk 0:02:59.3]} 4.
e5 {[%clk 0:02:56.9]} 4... Nfd7 {[%clk 0:02:59.5]} 5. f4 {[%clk 0:02:54.2]} 5...
c5 {[%clk 0:02:59.4]} 6. Nf3 {[%clk 0:02:54.7]} 6... Nc6 {[%clk 0:02:57.7]} 7.
Be3 {[%clk 0:02:50.5]} 7... cxd4 {[%clk 0:02:57.5]} 8. Nxd4 {[%clk 0:02:50.6]}
8... Qb6 {[%clk 0:02:57.6]} 9. Qd2 {[%clk 0:02:47.2]} 9... Qxb2 {[%clk
0:02:53.7]} 10. Rb1 {[%clk 0:02:43.3]} 10... Qa3 {[%clk 0:02:52.4]} 11. Bb5
{[%clk 0:02:40.8]} 11... Nxd4 {[%clk 0:02:49.4]} 12. Bxd4 {[%clk 0:02:41.7]}
12... a6 {[%clk 0:02:48.9]} 13. Bxd7+ {[%clk 0:02:37.5]} 13... Bxd7 {[%clk
0:02:49.8]} 14. Rb3 {[%clk 0:02:37.7]} 14... Qe7 {[%clk 0:02:47.9]} 15. Rxb7
{[%clk 0:02:37.3]} 15... Qh4+ {[%clk 0:02:46.7]} 16. g3 {[%clk 0:02:37.2]} 16...
Qd8 {[%clk 0:02:44.6]} 17. O-O {[%clk 0:02:35]} 17... Qc8 {[%clk 0:02:34.5]} 18.
Rfb1 {[%clk 0:02:26.7]} 18... Bc5 {[%clk 0:02:32.3]} 19. f5 {[%clk 0:02:22]}
19... Bb5 {[%clk 0:02:26.7]} 20. Nxb5 {[%clk 0:02:19.1]} 20... axb5 {[%clk
0:02:24.1]} 21. R7xb5 {[%clk 0:02:08.2]} 21... Bxd4+ {[%clk 0:02:20.6]} 22. Qxd4
{[%clk 0:02:09.1]} 22... O-O {[%clk 0:02:20.4]} 23. f6 {[%clk 0:02:00.3]} 23...
Qxc2 {[%clk 0:02:08.4]} 24. R5b2 {[%clk 0:01:37.1]} 24... Qa4 {[%clk 0:01:35.2]}
25. Rb4 {[%clk 0:01:32.4]} 25... Qc2 {[%clk 0:01:15.4]} 26. Qg4 {[%clk
0:01:27.8]} 26... g6 {[%clk 0:00:57]} 27. R4b2 {[%clk 0:01:13.9]} 27... Qf5
{[%clk 0:00:41.5]} 28. Qxf5 {[%clk 0:00:52.1]} 28... gxf5 {[%clk 0:00:41.5]} 29.
Kg2 {[%clk 0:00:44.7]} 29... h6 {[%clk 0:00:40.2]} 30. h4 {[%clk 0:00:43.5]}
30... h5 {[%clk 0:00:37.6]} 31. Kf3 {[%clk 0:00:42.3]} 31... Kh7 {[%clk
0:00:35.1]} 32. Ra1 {[%clk 0:00:39.2]} 32... Ra4 {[%clk 0:00:28.8]} 33. Rb7
{[%clk 0:00:36.3]} 33... Kg6 {[%clk 0:00:25.5]} 34. Rab1 {[%clk 0:00:23.7]}
34... Rxa2 {[%clk 0:00:18.6]} 35. Rb8 {[%clk 0:00:23.6]} 35... Ra8 {[%clk
0:00:18.7]} 36. Rxf8 {[%clk 0:00:23.7]} 36... Rxf8 {[%clk 0:00:18.7]} 37. Rb7
{[%clk 0:00:24.4]} 37... Rd8 {[%clk 0:00:16.7]} 38. Ke3 {[%clk 0:00:22.5]} 38...
d4+ {[%clk 0:00:16.9]} 39. Kd3 {[%clk 0:00:22.9]} 39... Rd5 {[%clk 0:00:17.2]}
40. Rb8 {[%clk 0:00:20.8]} 40... Rxe5 {[%clk 0:00:17.5]} 41. Kxd4 {[%clk
0:00:19.2]} 41... Re4+ {[%clk 0:00:17]} 42. Kd3 {[%clk 0:00:19.7]} 42... Kxf6
{[%clk 0:00:17.5]} 43. Rh8 {[%clk 0:00:19.7]} 43... Rg4 {[%clk 0:00:17.8]} 44.
Rxh5 {[%clk 0:00:18.1]} 44... Rxg3+ {[%clk 0:00:18.2]} 45. Ke2 {[%clk 0:00:19]}
45... f4 {[%clk 0:00:17]} 46. Kf2 {[%clk 0:00:19.3]} 46... e5 {[%clk 0:00:16.7]}
47. Rh8 {[%clk 0:00:18.9]} 47... Kf5 {[%clk 0:00:16.3]} 48. h5 {[%clk
0:00:19.3]} 48... f6 {[%clk 0:00:16.8]} 49. h6 {[%clk 0:00:19.8]} 49... Kg6
{[%clk 0:00:09.1]} 50. Ke2 {[%clk 0:00:17.1]} 50... Kf5 {[%clk 0:00:06.4]} 51.
Kf2 {[%clk 0:00:17.5]} 51... Rh3 {[%clk 0:00:06.8]} 52. Kg2 {[%clk 0:00:17.4]}
52... Rh5 {[%clk 0:00:06.7]} 53. h7 {[%clk 0:00:17.3]} 53... Rh6 {[%clk
0:00:06.7]} 54. Kf2 {[%clk 0:00:16.6]} 54... e4 {[%clk 0:00:07]} 55. Kf1 {[%clk
0:00:16.1]} 55... f3 {[%clk 0:00:07.1]} 56. Kf2 {[%clk 0:00:16.6]} 56... Kf4
{[%clk 0:00:07.5]} 57. Kg1 {[%clk 0:00:14.3]} 57... e3 {[%clk 0:00:07.3]} 58.
Kf1 {[%clk 0:00:13.2]} 58... Rh1# {[%clk 0:00:06.7]} 0-1

[Event "Late-Titled-Tuesday-Blitz-February-20-2024"]
[Site "Chess.com"]
[Date "2024.02.20"]
[Round "7"]
[White "Zkid"]
[Black "Polish_fighter3000"]
[Result "0-1"]
[WhiteElo "2928"]
[BlackElo "3067"]
[TimeControl "180+1"]
[EndTime "15:18:01 PST"]
[Termination "Polish_fighter3000 won by resignation"]

1. e4 {[%clk 0:03:00.9]} 1... e6 {[%clk 0:02:56.9]} 2. d4 {[%clk 0:03:00.7]}
2... d5 {[%clk 0:02:57.4]} 3. Nc3 {[%clk 0:03:01.2]} 3... dxe4 {[%clk
0:02:57.1]} 4. Nxe4 {[%clk 0:03:01.2]} 4... Bd7 {[%clk 0:02:57.8]} 5. Nf3 {[%clk
0:03:01.5]} 5... Bc6 {[%clk 0:02:58.4]} 6. Bd3 {[%clk 0:03:02.1]} 6... Nd7
{[%clk 0:02:59]} 7. O-O {[%clk 0:03:01.8]} 7... Ngf6 {[%clk 0:02:58.9]} 8. Qe2
{[%clk 0:03:00]} 8... Nxe4 {[%clk 0:02:55.6]} 9. Bxe4 {[%clk 0:03:00.9]} 9...
Bxe4 {[%clk 0:02:56.1]} 10. Qxe4 {[%clk 0:03:01.8]} 10... c6 {[%clk 0:02:56.7]}
11. c4 {[%clk 0:03:02.1]} 11... Be7 {[%clk 0:02:56.8]} 12. b3 {[%clk 0:03:01.4]}
12... O-O {[%clk 0:02:56.5]} 13. Bb2 {[%clk 0:03:01.9]} 13... a5 {[%clk
0:02:56.6]} 14. a3 {[%clk 0:02:59.4]} 14... Re8 {[%clk 0:02:55.2]} 15. Rad1
{[%clk 0:02:58.4]} 15... Bd6 {[%clk 0:02:51.2]} 16. Ne5 {[%clk 0:02:57.8]} 16...
Nf6 {[%clk 0:02:47.7]} 17. Qc2 {[%clk 0:02:56.3]} 17... Qe7 {[%clk 0:02:47.9]}
18. a4 {[%clk 0:02:50.7]} 18... Red8 {[%clk 0:02:42]} 19. Rfe1 {[%clk
0:02:50.2]} 19... Ba3 {[%clk 0:02:30.7]} 20. Ba1 {[%clk 0:02:48.2]} 20... Bb4
{[%clk 0:02:30.5]} 21. Re3 {[%clk 0:02:48.5]} 21... h6 {[%clk 0:02:14.1]} 22. g3
{[%clk 0:02:46.1]} 22... Rd6 {[%clk 0:02:10]} 23. Nd3 {[%clk 0:02:44.9]} 23...
Rad8 {[%clk 0:01:52.6]} 24. Nxb4 {[%clk 0:02:44.5]} 24... axb4 {[%clk
0:01:53.5]} 25. Red3 {[%clk 0:02:28.7]} 25... R6d7 {[%clk 0:01:53.4]} 26. Bb2
{[%clk 0:02:27.8]} 26... Ne8 {[%clk 0:01:15.7]} 27. Qd2 {[%clk 0:02:23.8]} 27...
Nc7 {[%clk 0:01:12]} 28. Qe1 {[%clk 0:02:22.3]} 28... b5 {[%clk 0:01:05.3]} 29.
a5 {[%clk 0:02:18.6]} 29... bxc4 {[%clk 0:01:03.3]} 30. bxc4 {[%clk 0:02:19.5]}
30... Ra8 {[%clk 0:01:01.3]} 31. Ra1 {[%clk 0:02:18.6]} 31... Na6 {[%clk
0:00:58.9]} 32. Qe5 {[%clk 0:02:13.4]} 32... Qd6 {[%clk 0:00:57.6]} 33. Qxd6
{[%clk 0:02:11.9]} 33... Rxd6 {[%clk 0:00:58.5]} 34. Kf1 {[%clk 0:02:12.2]}
34... f6 {[%clk 0:00:56]} 35. f4 {[%clk 0:02:08.5]} 35... Kf7 {[%clk 0:00:55.7]}
36. Ke2 {[%clk 0:02:08.6]} 36... h5 {[%clk 0:00:53.6]} 37. Kd2 {[%clk
0:02:01.5]} 37... Ke7 {[%clk 0:00:43.2]} 38. Kc2 {[%clk 0:01:59.6]} 38... c5
{[%clk 0:00:33]} 39. Re1 {[%clk 0:01:46.5]} 39... Kd7 {[%clk 0:00:31]} 40. f5
{[%clk 0:01:43.8]} 40... exf5 {[%clk 0:00:04.6]} 41. d5 {[%clk 0:01:20.7]} 41...
Nc7 {[%clk 0:00:05.1]} 42. Rde3 {[%clk 0:01:21.2]} 42... Re8 {[%clk 0:00:05.7]}
43. Bc1 {[%clk 0:01:16.6]} 43... Ra6 {[%clk 0:00:05.5]} 44. d6 {[%clk
0:00:38.8]} 44... Rxd6 {[%clk 0:00:04.4]} 45. Rxe8 {[%clk 0:00:35.7]} 45... Nxe8
{[%clk 0:00:05.3]} 46. Bf4 {[%clk 0:00:31.8]} 46... Ra6 {[%clk 0:00:05.1]} 47.
Ra1 {[%clk 0:00:30.4]} 47... g5 {[%clk 0:00:04.9]} 48. Be3 {[%clk 0:00:29.3]}
48... Kc6 {[%clk 0:00:05.1]} 49. h4 {[%clk 0:00:17.9]} 49... Nd6 {[%clk
0:00:05.6]} 50. Kd3 {[%clk 0:00:15.8]} 50... f4 {[%clk 0:00:04.9]} 51. gxf4
{[%clk 0:00:14]} 51... gxh4 {[%clk 0:00:04.7]} 52. Bf2 {[%clk 0:00:11.9]} 52...
h3 {[%clk 0:00:04.9]} 53. Bh4 {[%clk 0:00:10.3]} 53... h2 {[%clk 0:00:04.1]} 54.
Bxf6 {[%clk 0:00:09]} 54... Rxa5 {[%clk 0:00:04.6]} 55. Rh1 {[%clk 0:00:09.5]}
55... Ra3+ {[%clk 0:00:04.6]} 56. Ke2 {[%clk 0:00:09.1]} 56... Ne4 {[%clk
0:00:05]} 57. Bh4 {[%clk 0:00:08.7]} 57... b3 {[%clk 0:00:04.7]} 58. f5 {[%clk
0:00:08.1]} 58... b2 {[%clk 0:00:04.8]} 59. f6 {[%clk 0:00:08.1]} 59... Nd6
{[%clk 0:00:05.2]} 0-1

[Event "Late-Titled-Tuesday-Blitz-February-20-2024"]
[Site "Chess.com"]
[Date "2024.02.20"]
[Round "7"]
[White "David_George21"]
[Black "ozates"]
[Result "0-1"]
[WhiteElo "2399"]
[BlackElo "2604"]
[TimeControl "180+1"]
[EndTime "15:18:02 PST"]
[Termination "ozates won by resignation"]

1. e4 {[%clk 0:03:00.9]} 1... e5 {[%clk 0:02:59.5]} 2. Nf3 {[%clk 0:03:00.6]}
2... Nc6 {[%clk 0:02:59.3]} 3. Bb5 {[%clk 0:02:58.1]} 3... g6 {[%clk 0:02:58.1]}
4. O-O {[%clk 0:02:56.9]} 4... Bg7 {[%clk 0:02:57.3]} 5. c3 {[%clk 0:02:56.8]}
5... Nge7 {[%clk 0:02:57.2]} 6. d4 {[%clk 0:02:56.1]} 6... exd4 {[%clk
0:02:58.1]} 7. cxd4 {[%clk 0:02:55.9]} 7... a6 {[%clk 0:02:58.8]} 8. Bc4 {[%clk
0:02:52.4]} 8... O-O {[%clk 0:02:57.3]} 9. Nc3 {[%clk 0:02:48.1]} 9... b5 {[%clk
0:02:57.4]} 10. Bb3 {[%clk 0:02:47.7]} 10... Na5 {[%clk 0:02:57.3]} 11. Bc2
{[%clk 0:02:46.2]} 11... d6 {[%clk 0:02:57.7]} 12. Re1 {[%clk 0:02:44.8]} 12...
Bg4 {[%clk 0:02:56.5]} 13. Be3 {[%clk 0:02:42.8]} 13... Nc4 {[%clk 0:02:54.7]}
14. Rb1 {[%clk 0:02:41.4]} 14... Nxe3 {[%clk 0:02:45]} 15. Rxe3 {[%clk
0:02:39.6]} 15... c5 {[%clk 0:02:45.9]} 16. h3 {[%clk 0:02:38.1]} 16... Bxf3
{[%clk 0:02:45.1]} 17. Rxf3 {[%clk 0:02:35.2]} 17... cxd4 {[%clk 0:02:39.1]} 18.
Ne2 {[%clk 0:02:33.6]} 18... Nc6 {[%clk 0:02:39.7]} 19. Bb3 {[%clk 0:02:23.8]}
19... Rc8 {[%clk 0:02:36.6]} 20. Bd5 {[%clk 0:02:20]} 20... Ne5 {[%clk
0:02:35.5]} 21. Rg3 {[%clk 0:02:19.9]} 21... d3 {[%clk 0:01:38.6]} 22. Nf4
{[%clk 0:02:12.1]} 22... Rc2 {[%clk 0:01:35.1]} 23. Nxd3 {[%clk 0:02:10.3]}
23... Nxd3 {[%clk 0:01:34.3]} 24. Qxd3 {[%clk 0:02:10.4]} 24... Rxb2 {[%clk
0:01:34.8]} 25. Rxb2 {[%clk 0:02:08.7]} 25... Bxb2 {[%clk 0:01:35.7]} 26. Rf3
{[%clk 0:02:06.1]} 26... Kg7 {[%clk 0:01:32.2]} 27. Qb3 {[%clk 0:02:00.9]} 27...
Bf6 {[%clk 0:01:27.7]} 28. g4 {[%clk 0:01:48.4]} 28... Qc7 {[%clk 0:01:23]} 29.
Kg2 {[%clk 0:01:47.9]} 29... Be5 {[%clk 0:01:19.3]} 30. Rd3 {[%clk 0:01:33.9]}
30... Qc1 {[%clk 0:01:12.3]} 31. Qa3 {[%clk 0:01:24.9]} 31... Qf4 {[%clk
0:01:10.5]} 32. Rg3 {[%clk 0:01:23.5]} 32... f6 {[%clk 0:00:50]} 33. Qxa6 {[%clk
0:01:21.9]} 33... Kh6 {[%clk 0:00:48.1]} 34. Qxb5 {[%clk 0:01:20.1]} 34... Rc8
{[%clk 0:00:47.1]} 35. Qd3 {[%clk 0:01:13.2]} 35... Rc3 {[%clk 0:00:35.1]} 36.
Qxc3 {[%clk 0:01:02.3]} 36... Bxc3 {[%clk 0:00:36]} 37. Rxc3 {[%clk 0:01:02.4]}
37... Qd2 {[%clk 0:00:36.2]} 38. Re3 {[%clk 0:00:54]} 38... Kg5 {[%clk
0:00:32.4]} 39. Rf3 {[%clk 0:00:43.4]} 39... h5 {[%clk 0:00:28.1]} 40. gxh5
{[%clk 0:00:37.5]} 40... Kxh5 {[%clk 0:00:29]} 41. Rg3 {[%clk 0:00:31]} 41...
Kh6 {[%clk 0:00:21.2]} 42. Bf7 {[%clk 0:00:27.8]} 42... g5 {[%clk 0:00:20.5]}
43. Bd5 {[%clk 0:00:27.5]} 43... f5 {[%clk 0:00:20.1]} 44. Rf3 {[%clk
0:00:19.6]} 44... f4 {[%clk 0:00:19.5]} 45. Rb3 {[%clk 0:00:18.6]} 45... Qd1
{[%clk 0:00:15.4]} 46. Rb6 {[%clk 0:00:13.1]} 46... Kh5 {[%clk 0:00:13.9]} 47.
Bf7+ {[%clk 0:00:12.1]} 47... Kh4 {[%clk 0:00:13.8]} 48. Rb3 {[%clk 0:00:10.8]}
48... Qe2 {[%clk 0:00:09.3]} 49. Bd5 {[%clk 0:00:10.1]} 49... g4 {[%clk
0:00:08.5]} 50. hxg4 {[%clk 0:00:09.6]} 50... Qxg4+ {[%clk 0:00:09.4]} 51. Kf1
{[%clk 0:00:09.8]} 51... f3 {[%clk 0:00:06.5]} 52. Rb2 {[%clk 0:00:07.4]} 52...
Qg2+ {[%clk 0:00:06.6]} 53. Ke1 {[%clk 0:00:07.1]} 53... Qg1+ {[%clk 0:00:06.9]}
54. Kd2 {[%clk 0:00:07.5]} 54... Qxf2+ {[%clk 0:00:07.8]} 55. Kc3 {[%clk
0:00:08.4]} 55... Qe3+ {[%clk 0:00:08]} 56. Kb4 {[%clk 0:00:08.1]} 56... f2
{[%clk 0:00:07.7]} 57. Rb1 {[%clk 0:00:07.8]} 57... Qb6+ {[%clk 0:00:06.6]} 0-1

[Event "Late-Titled-Tuesday-Blitz-February-20-2024"]
[Site "Chess.com"]
[Date "2024.02.20"]
[Round "7"]
[White "delqate"]
[Black "AsaHoffmann"]
[Result "1-0"]
[WhiteElo "2530"]
[BlackElo "2385"]
[TimeControl "180+1"]
[EndTime "15:18:03 PST"]
[Termination "delqate won by resignation"]

1. d4 {[%clk 0:03:00.9]} 1... Nf6 {[%clk 0:02:57.4]} 2. Bf4 {[%clk 0:03:00.6]}
2... c5 {[%clk 0:02:56.6]} 3. e3 {[%clk 0:02:58.7]} 3... b6 {[%clk 0:02:55.1]}
4. Nf3 {[%clk 0:02:54.6]} 4... Bb7 {[%clk 0:02:54.8]} 5. Nbd2 {[%clk 0:02:53.3]}
5... d6 {[%clk 0:02:54.8]} 6. c3 {[%clk 0:02:53.5]} 6... Nbd7 {[%clk 0:02:54.6]}
7. h3 {[%clk 0:02:51.8]} 7... g6 {[%clk 0:02:54.5]} 8. Bh2 {[%clk 0:02:51.7]}
8... Bg7 {[%clk 0:02:54.3]} 9. Bd3 {[%clk 0:02:44.8]} 9... O-O {[%clk
0:02:53.2]} 10. O-O {[%clk 0:02:44]} 10... Re8 {[%clk 0:02:53.1]} 11. a4 {[%clk
0:02:35.9]} 11... a6 {[%clk 0:02:52.4]} 12. b4 {[%clk 0:02:26.5]} 12... e5
{[%clk 0:02:47]} 13. dxe5 {[%clk 0:02:20.5]} 13... dxe5 {[%clk 0:02:45.4]} 14.
e4 {[%clk 0:02:08.1]} 14... Rc8 {[%clk 0:02:42.8]} 15. b5 {[%clk 0:02:03.4]}
15... a5 {[%clk 0:02:40.7]} 16. Qe2 {[%clk 0:01:55.9]} 16... Qe7 {[%clk
0:02:35.5]} 17. Bc4 {[%clk 0:01:47]} 17... Nh5 {[%clk 0:01:50.1]} 18. Qe3 {[%clk
0:01:33.9]} 18... Qf8 {[%clk 0:01:46.5]} 19. Ng5 {[%clk 0:01:19.2]} 19... Bh6
{[%clk 0:01:42.9]} 20. Ndf3 {[%clk 0:00:58.8]} 20... Re7 {[%clk 0:01:41.4]} 21.
Qd2 {[%clk 0:00:52.7]} 21... Rd8 {[%clk 0:01:39.6]} 22. Qa2 {[%clk 0:00:52.2]}
22... Ndf6 {[%clk 0:01:34.9]} 23. Nxf7 {[%clk 0:00:47.3]} 23... Rxf7 {[%clk
0:01:33.9]} 24. Nxe5 {[%clk 0:00:46.7]} 24... Nxe4 {[%clk 0:01:26.8]} 25. Nxf7
{[%clk 0:00:42.7]} 25... Kg7 {[%clk 0:01:21.4]} 26. Nxd8 {[%clk 0:00:37.4]}
26... Qxd8 {[%clk 0:01:21]} 27. Be5+ {[%clk 0:00:35.9]} 27... Nhf6 {[%clk
0:01:20.2]} 28. Rad1 {[%clk 0:00:32.1]} 28... Qe7 {[%clk 0:01:17.5]} 29. Bxf6+
{[%clk 0:00:28.2]} 29... Nxf6 {[%clk 0:01:13.9]} 30. Qe2 {[%clk 0:00:26.7]}
30... Qc7 {[%clk 0:00:57.6]} 31. Qe6 {[%clk 0:00:23.5]} 31... Bf4 {[%clk
0:00:53.1]} 32. Rfe1 {[%clk 0:00:20]} 32... Bh2+ {[%clk 0:00:48.4]} 33. Kh1
{[%clk 0:00:20]} 33... Qf4 {[%clk 0:00:42.4]} 34. Qe7+ {[%clk 0:00:14.9]} 34...
Kh6 {[%clk 0:00:42]} 35. Qe3 {[%clk 0:00:13.2]} 35... Ne4 {[%clk 0:00:37.8]} 36.
Qxf4+ {[%clk 0:00:12.7]} 36... Bxf4 {[%clk 0:00:37.4]} 37. Kg1 {[%clk
0:00:07.2]} 37... Nxc3 {[%clk 0:00:34]} 38. Rd7 {[%clk 0:00:07.5]} 38... Be4
{[%clk 0:00:31.5]} 39. f3 {[%clk 0:00:04.8]} 39... Bc2 {[%clk 0:00:30.8]} 40.
Ree7 {[%clk 0:00:04.3]} 40... Kg5 {[%clk 0:00:29.5]} 41. Rxh7 {[%clk 0:00:03.9]}
41... Bxa4 {[%clk 0:00:27.7]} 42. h4+ {[%clk 0:00:04.5]} 42... Kf5 {[%clk
0:00:26.5]} 43. Rhf7+ {[%clk 0:00:05.2]} 43... Ke5 {[%clk 0:00:26.3]} 44. Rfe7+
{[%clk 0:00:05.4]} 44... Kf6 {[%clk 0:00:25.7]} 45. Rf7+ {[%clk 0:00:06.1]}
45... Ke5 {[%clk 0:00:25.6]} 46. Rde7+ {[%clk 0:00:06.7]} 46... Kd4 {[%clk
0:00:25.6]} 47. Rxf4+ {[%clk 0:00:06.4]} 47... Ne4 {[%clk 0:00:22.1]} 48. Rfxe4+
{[%clk 0:00:06.5]} 48... Kc3 {[%clk 0:00:21.9]} 49. Bf7 {[%clk 0:00:06.7]} 49...
Bc2 {[%clk 0:00:21.2]} 50. Re2 {[%clk 0:00:06.4]} 50... Bd3 {[%clk 0:00:20.9]}
51. R2e3 {[%clk 0:00:06.5]} 51... a4 {[%clk 0:00:20.8]} 52. Bxg6 {[%clk
0:00:06.7]} 52... c4 {[%clk 0:00:20.8]} 53. Rc7 {[%clk 0:00:06.7]} 53... Kd4
{[%clk 0:00:20.3]} 54. Bxd3 {[%clk 0:00:05.7]} 54... cxd3 {[%clk 0:00:19]} 55.
Re8 {[%clk 0:00:05.2]} 55... a3 {[%clk 0:00:19]} 56. Rd8+ {[%clk 0:00:05.7]}
56... Ke3 {[%clk 0:00:19.3]} 57. Rcd7 {[%clk 0:00:06.3]} 57... a2 {[%clk
0:00:18.2]} 58. Rxd3+ {[%clk 0:00:06.5]} 58... Ke2 {[%clk 0:00:18.4]} 59. Rd1
{[%clk 0:00:06.8]} 59... Ke3 {[%clk 0:00:16.9]} 60. Ra1 {[%clk 0:00:06.8]} 60...
Kf4 {[%clk 0:00:16.4]} 61. Rxa2 {[%clk 0:00:07.1]} 61... Kg3 {[%clk 0:00:16.6]}
62. Rg8+ {[%clk 0:00:06.8]} 62... Kxh4 {[%clk 0:00:16.2]} 63. Ra7 {[%clk
0:00:06.5]} 1-0